bitfinex/quotes_BTCUSD_20250505
["timestamp","ask_amount","ask_price","bid_price","bid_amount"]
[1746450297813,0.001,94641.0,94637.0,0.00211312]
[1746450298067,0.33151065,94659.0,94638.0,0.0164]
[1746450298203,0.33151065,94659.0,94649.0,0.00045532]
[1746450298406,0.33960348,94659.0,94649.0,0.00045532]
[1746450298853,0.00054468,94641.0,94639.0,0.00880527]
[1746450299067,0.00054468,94641.0,94637.0,0.00511312]
[1746450299265,0.00054468,94641.0,94638.0,0.0322]
[1746450299466,0.00054468,94641.0,94637.0,0.00511312]
[1746450299674,0.00054468,94641.0,94639.0,0.0322]
[1746450299881,0.01710702,94641.0,94640.0,0.0322]
[1746450300940,0.01710702,94641.0,94640.0,0.0164]
[1746450301285,0.01656234,94641.0,94640.0,0.0164]
[1746450301669,0.01756234,94641.0,94640.0,0.0164]
[1746450302175,0.01756234,94641.0,94640.0,0.0681396]
[1746450302352,0.01856234,94641.0,94640.0,0.0537396]
[1746450302524,0.01856234,94641.0,94640.0,0.07352956]
[1746450302718,0.01856234,94641.0,94640.0,0.07152956]
[1746450303112,0.01856234,94641.0,94640.0,0.07352956]
[1746450303559,0.01856234,94641.0,94640.0,0.09352956]
[1746450306484,0.002,94641.0,94640.0,0.09352956]
[1746450306851,0.002,94641.0,94640.0,0.04578996]
[1746450309546,0.002,94641.0,94640.0,0.03878996]
[1746450309949,0.01856274,94641.0,94640.0,0.05398996]
[1746450310812,0.01856274,94641.0,94640.0,0.10168576]
[1746450310980,0.01856274,94641.0,94640.0,0.11698576]
[1746450311180,0.01856274,94641.0,94640.0,0.08648576]
[1746450316600,0.002,94641.0,94640.0,0.07948576]
[1746450320047,0.01856267,94641.0,94640.0,0.07948576]
[1746450320246,0.00911995,94649.0,94640.0,0.05948576]
[1746450320450,0.01656283,94641.0,94640.0,0.05948576]
[1746450323667,0.01656283,94641.0,94640.0,0.05248576]
[1746450325759,0.01077111,94649.0,94640.0,0.05248576]
[1746450325956,0.26441324,94650.0,94640.0,0.05248576]
[1746450326208,0.26441324,94650.0,94640.0,0.0496958]
[1746450326786,0.26441324,94650.0,94640.0,0.0476958]
[1746450327361,0.27524061,94650.0,94640.0,0.0496958]
[1746450327608,0.27524061,94650.0,94640.0,0.0506958]
[1746450328250,0.27524061,94650.0,94640.0,0.0496958]
[1746450329224,0.01656251,94648.0,94640.0,0.0496958]
[1746450329818,0.01656251,94648.0,94641.0,0.0476958]
[1746450330954,0.01656251,94648.0,94641.0,0.0496958]
[1746450331155,0.01656251,94648.0,94641.0,0.0426958]
[1746450331471,0.01656251,94648.0,94641.0,0.002]
[1746450332832,0.01656251,94648.0,94641.0,0.003]
[1746450335494,0.01656251,94648.0,94641.0,0.002843]
[1746450335679,0.01656251,94648.0,94642.0,0.01979567]
[1746450336181,0.01656251,94648.0,94643.0,0.01979567]
[1746450336520,0.27524061,94650.0,94644.0,0.01979567]
[1746450336749,0.27524061,94650.0,94645.0,0.01979567]
[1746450337290,0.27524061,94650.0,94646.0,0.01979567]
[1746450337811,0.27524061,94650.0,94647.0,0.01979567]
[1746450338172,0.27524061,94650.0,94648.0,0.01979567]
[1746450338520,0.27524061,94650.0,94649.0,0.01979567]
[1746450338877,0.27524061,94650.0,94649.0,0.01479567]
[1746450339893,0.29180292,94650.0,94649.0,0.01579567]
[1746450341908,0.30700292,94650.0,94649.0,0.01579567]
[1746450342881,0.04258968,94650.0,94649.0,0.01579567]
[1746450344529,0.02738968,94650.0,94649.0,0.01579567]
[1746450344743,0.01656231,94650.0,94649.0,0.01579567]
[1746450345996,0.01656231,94650.0,94649.0,0.00879567]
[1746450346222,0.01656231,94650.0,94649.0,0.00779567]
[1746450346415,0.01656231,94650.0,94644.0,0.00211312]
[1746450346647,0.01072486,94653.0,94649.0,0.003]
[1746450346981,0.001,94650.0,94649.0,0.006]
[1746450347179,0.001,94650.0,94649.0,0.003]
[1746450348480,0.34854784,94659.0,94644.0,0.00511312]
[1746450348685,0.001,94650.0,94644.0,0.00911312]
[1746450348933,0.001,94650.0,94649.0,0.04769951]
[1746450349345,0.002,94650.0,94649.0,0.05169951]
[1746450349722,0.01756075,94650.0,94649.0,0.04769951]
[1746450349924,0.01856075,94650.0,94649.0,0.05069951]
[1746450350124,0.01756075,94650.0,94649.0,0.05069951]
[1746450351803,0.01856075,94650.0,94649.0,0.05469951]
[1746450352978,0.01856075,94650.0,94649.0,0.04769951]
[1746450356715,0.002,94650.0,94649.0,0.04769951]
[1746450358014,0.002,94650.0,94649.0,0.0674719]
[1746450358926,0.002,94650.0,94649.0,0.0979719]
[1746450359869,0.01856085,94650.0,94649.0,0.0829719]
[1746450360072,0.01856085,94650.0,94649.0,0.0759719]
[1746450360863,0.01856085,94650.0,94649.0,0.0604719]
[1746450366555,0.002,94650.0,94649.0,0.0923719]
[1746450367008,0.002,94650.0,94649.0,0.0768719]
[1746450367213,0.002,94650.0,94649.0,0.0698719]
[1746450367936,0.002,94650.0,94649.0,0.0534719]
[1746450369546,0.002,94650.0,94649.0,0.03369951]
[1746450369907,0.01856015,94650.0,94649.0,0.05347544]
[1746450371467,0.01856015,94650.0,94649.0,0.08437544]
[1746450372517,0.01856015,94650.0,94649.0,0.05347544]
[1746450373795,0.01051813,94653.0,94649.0,0.05347544]
[1746450373996,0.00854784,94659.0,94650.0,0.0021128]
[1746450374179,0.01656069,94653.0,94650.0,0.01488873]
[1746450374412,0.01656069,94653.0,94651.0,0.0021128]
[1746450374840,0.01756069,94653.0,94651.0,0.0021128]
[1746450375036,0.01756069,94653.0,94650.0,0.0021128]
[1746450375262,0.02806572,94653.0,94650.0,0.0021128]
[1746450375439,0.02906572,94653.0,94650.0,0.0051128]
[1746450375863,0.02706572,94653.0,94650.0,0.0021128]
[1746450376222,0.02806572,94653.0,94651.0,0.003]
[1746450376474,0.02806572,94653.0,94650.0,0.0021128]
[1746450376698,0.01150503,94653.0,94650.0,0.0021128]
[1746450377556,0.01150503,94653.0,94650.0,0.0041128]
[1746450377962,0.01250503,94653.0,94650.0,0.0081128]
[1746450380091,0.02906439,94653.0,94650.0,0.0081128]
[1746450380611,0.0317,94652.0,94650.0,0.006]
[1746450380807,0.03913122,94652.0,94650.0,0.006]
[1746450381232,0.03913122,94652.0,94635.0,0.414]
[1746450381557,0.02906439,94653.0,94636.0,0.00211295]
[1746450381768,0.02706439,94653.0,94636.0,0.00211295]
[1746450382135,0.001,94652.0,94650.0,0.004]
[1746450382444,0.001,94652.0,94650.0,0.003]
[1746450382899,0.001,94652.0,94636.0,0.00611295]
[1746450382900,0.02806439,94653.0,94636.0,0.00611295]
[1746450383032,0.02806439,94653.0,94636.0,0.00211295]
[1746450383232,0.02806439,94653.0,94636.0,0.00411295]
[1746450383460,0.001,94652.0,94650.0,0.004]
[1746450384032,0.0174,94652.0,94650.0,0.004]
[1746450384884,0.02706439,94653.0,94649.0,0.04983985]
[1746450385052,0.0327,94652.0,94649.0,0.04983985]
[1746450385859,0.0337,94652.0,94650.0,0.002]
[1746450386035,0.0162,94651.0,94650.0,0.003]
[1746450386247,0.0324,94651.0,94650.0,0.001]
[1746450386688,0.0324,94651.0,94650.0,0.01979613]
[1746450388418,0.0324,94651.0,94650.0,0.01279613]
[1746450389008,0.0324,94651.0,94650.0,0.06251878]
[1746450389817,0.04996026,94651.0,94650.0,0.06551878]
[1746450391467,0.01756026,94651.0,94650.0,0.06551878]
[1746450392359,0.03346026,94651.0,94650.0,0.06551878]
[1746450393018,0.01756026,94651.0,94650.0,0.06551878]
[1746450394107,0.03376026,94651.0,94650.0,0.06551878]
[1746450394528,0.05569679,94651.0,94650.0,0.06551878]
[1746450394902,0.04976026,94651.0,94650.0,0.06551878]
[1746450395436,0.04976026,94651.0,94650.0,0.05851878]
[1746450396407,0.0332,94651.0,94650.0,0.05851878]
[1746450397336,0.0172,94651.0,94650.0,0.05851878]
[1746450397736,0.001,94651.0,94650.0,0.05851878]
[1746450400378,0.0334,94651.0,94650.0,0.05851878]
[1746450401125,0.04996003,94651.0,94650.0,0.05851878]
[1746450401505,0.05627066,94651.0,94650.0,0.05851878]
[1746450402111,0.02387066,94651.0,94650.0,0.05851878]
[1746450402590,0.01756003,94651.0,94650.0,0.05151878]
[1746450406409,0.001,94651.0,94650.0,0.05151878]
[1746450409628,0.001,94651.0,94650.0,0.04451878]
[1746450416423,0.01756085,94651.0,94650.0,0.04451878]
[1746450416776,0.001,94651.0,94650.0,0.03751878]
[1746450419571,0.001,94651.0,94650.0,0.01700171]
[1746450420146,0.01755994,94651.0,94650.0,0.01700171]
[1746450423811,0.01755994,94651.0,94650.0,0.01000171]
[1746450426489,0.001,94651.0,94650.0,0.01000171]
[1746450429930,0.01755998,94651.0,94650.0,0.01000171]
[1746450430972,0.01755998,94651.0,94650.0,0.00300171]
[1746450434204,0.05864773,94651.0,94650.0,0.00300171]
[1746450434429,0.05280123,94651.0,94650.0,0.00300171]
[1746450436593,0.03624125,94651.0,94650.0,0.00300171]
[1746450437562,0.58754382,94651.0,94650.0,0.00300171]
[1746450437780,0.55133829,94635.0,94634.0,0.06485354]
[1746450437951,0.66060572,94635.0,94634.0,0.05785354]
[1746450438157,0.6683826,94635.0,94634.0,0.05785354]
[1746450438396,0.6683826,94635.0,94627.0,0.05785354]
[1746450438397,0.34,94630.0,94627.0,0.05785354]
[1746450438594,0.0316,94628.0,94627.0,0.05785354]
[1746450438957,0.06192515,94628.0,94627.0,0.05785354]
[1746450439561,0.03424222,94628.0,94627.0,0.05785354]
[1746450439765,0.03424222,94628.0,94627.0,0.05789903]
[1746450440702,0.37424222,94628.0,94627.0,0.05789903]
[1746450440872,0.3716,94628.0,94627.0,0.05789903]
[1746450441078,0.58395393,94628.0,94627.0,0.05889903]
[1746450441285,0.68947422,94628.0,94627.0,0.05889903]
[1746450442090,0.68847422,94628.0,94627.0,0.05789903]
[1746450442256,0.69047422,94628.0,94627.0,0.00104549]
[1746450443232,0.48012029,94628.0,94627.0,0.00104549]
[1746450444401,0.69147422,94628.0,94627.0,0.00104549]
[1746450445118,0.34,94622.0,94601.0,0.04394899]
[1746450445323,0.34,94620.0,94601.0,0.04400675]
[1746450445483,0.00264247,94619.0,94601.0,0.04400675]
[1746450445658,0.26441324,94611.0,94601.0,0.04400675]
[1746450446330,0.00264247,94610.0,94601.0,0.04400675]
[1746450447174,0.00264247,94610.0,94601.0,5.776e-05]
[1746450447382,0.02835557,94609.0,94601.0,5.776e-05]
[1746450447590,0.00264273,94608.0,94601.0,5.776e-05]
[1746450448009,0.02835557,94609.0,94601.0,0.00305776]
[1746450448130,0.00047566,94608.0,94601.0,0.00305776]
[1746450449006,0.0196361,94608.0,94601.0,0.00305776]
[1746450449245,0.03593316,94608.0,94601.0,0.00305776]
[1746450449381,0.03593316,94608.0,94601.0,5.776e-05]
[1746450449847,0.01656891,94607.0,94601.0,0.00205776]
[1746450450059,0.00047566,94606.0,94601.0,0.00205776]
[1746450450281,0.01057037,94604.0,94601.0,5.776e-05]
[1746450450475,0.58301202,94602.0,94601.0,5.776e-05]
[1746450450723,0.58301202,94602.0,94601.0,0.00205776]
[1746450450917,0.3716,94602.0,94601.0,0.00205776]
[1746450451346,0.3716,94602.0,94601.0,5.776e-05]
[1746450451547,0.47712029,94602.0,94601.0,5.776e-05]
[1746450452069,0.47812029,94602.0,94601.0,5.776e-05]
[1746450452852,0.68953231,94602.0,94601.0,5.776e-05]
[1746450453207,0.22198702,94601.0,94571.0,0.002]
[1746450453411,0.44793819,94600.0,94577.0,0.08402964]
[1746450453585,0.34,94589.0,94577.0,0.08402964]
[1746450453795,0.0024179,94588.0,94577.0,0.08402964]
[1746450454359,0.01657118,94586.0,94578.0,0.00015904]
[1746450455806,0.01757118,94586.0,94578.0,0.00015904]
[1746450456635,0.001,94586.0,94578.0,0.00015904]
[1746450457242,0.001,94586.0,94578.0,0.00315904]
[1746450460873,0.01657124,94585.0,94578.0,0.00315904]
[1746450461860,0.01511187,94585.0,94578.0,0.00315904]
[1746450462409,0.01611187,94585.0,94578.0,0.00315904]
[1746450463042,0.01611187,94585.0,94578.0,0.00015904]
[1746450463242,0.02421577,94585.0,94578.0,0.00015904]
[1746450463457,0.02421577,94585.0,94578.0,0.00315904]
[1746450464566,0.03554513,94584.0,94578.0,0.00315904]
[1746450465714,0.0024179,94584.0,94578.0,0.00315904]
[1746450465931,0.0024179,94584.0,94579.0,0.0317]
[1746450466142,0.02321577,94585.0,94579.0,0.0317]
[1746450466143,0.01511187,94585.0,94579.0,0.0317]
[1746450466340,0.05,94639.0,94581.0,0.0317]
[1746450466341,0.34,94599.0,94581.0,0.0317]
[1746450466681,0.001,94584.0,94583.0,0.0305]
[1746450466822,0.34,94599.0,94583.0,0.0305]
[1746450467026,0.02190094,94598.0,94584.0,0.00211428]
[1746450467228,0.02190094,94598.0,94583.0,0.0305]
[1746450467461,0.34,94599.0,94584.0,0.00202684]
[1746450468963,0.34,94599.0,94584.0,0.00102684]
[1746450469572,0.01657057,94596.0,94584.0,0.00102684]
[1746450471181,0.01657057,94596.0,94584.0,0.00302684]
[1746450473520,0.01757057,94596.0,94584.0,0.00302684]
[1746450475167,0.01757057,94596.0,94584.0,0.00252684]
[1746450476555,0.001,94596.0,94584.0,0.00252684]
[1746450479592,0.01657064,94594.0,94584.0,0.00252684]
[1746450480764,0.01657064,94594.0,94584.0,0.00052684]
[1746450480904,0.01657064,94594.0,94584.0,0.00252684]
[1746450481735,0.31215383,94594.0,94584.0,0.002]
[1746450482133,0.31315383,94594.0,94584.0,0.002]
[1746450483405,0.26541324,94594.0,94584.0,0.002]
[1746450483847,0.01657087,94592.0,94584.0,0.002]
[1746450484764,0.01657087,94592.0,94580.0,0.00056697]
[1746450485105,0.01657087,94592.0,94584.0,0.002]
[1746450485385,0.01657087,94592.0,94585.0,0.04773752]
[1746450485598,0.01757087,94592.0,94585.0,0.04773752]
[1746450486357,0.01857087,94592.0,94585.0,0.04773752]
[1746450486558,0.26441324,94594.0,94585.0,0.04773752]
[1746450487120,0.001,94592.0,94585.0,0.04773752]
[1746450487905,0.06154132,94592.0,94585.0,0.04773752]
[1746450488303,0.001,94592.0,94585.0,0.002]
[1746450488505,0.26441324,94594.0,94585.0,0.002]
[1746450488828,0.27328288,94594.0,94585.0,0.002]
[1746450489425,0.001,94592.0,94585.0,0.002]
[1746450490716,0.001,94592.0,94582.0,0.00052697]
[1746450490886,0.01657081,94591.0,94582.0,0.00052697]
[1746450491098,0.01657081,94591.0,94582.0,0.00052698]
[1746450491386,0.01657081,94591.0,94585.0,0.002]
[1746450492000,0.01657081,94591.0,94582.0,0.00052698]
[1746450492277,0.01657081,94591.0,94582.0,0.00352698]
[1746450493043,0.01757081,94591.0,94582.0,0.00352698]
[1746450493248,0.01657081,94591.0,94582.0,0.00352698]
[1746450493647,0.01757081,94591.0,94582.0,0.00052698]
[1746450493877,0.01757081,94591.0,94585.0,0.003]
[1746450494445,0.01757081,94591.0,94582.0,0.00052698]
[1746450494842,0.01757081,94591.0,94582.0,0.00352698]
[1746450495160,0.01657081,94591.0,94582.0,0.00352698]
[1746450495474,0.01757081,94591.0,94582.0,0.00352698]
[1746450495679,0.02961936,94591.0,94586.0,0.047851]
[1746450496228,0.02861936,94591.0,94586.0,0.047851]
[1746450496435,0.00798845,94594.0,94586.0,0.047851]
[1746450496637,0.001,94591.0,94586.0,0.047851]
[1746450496818,0.00264312,94593.0,94586.0,0.047851]
[1746450497319,0.00264312,94593.0,94586.0,0.050851]
[1746450497821,0.00264312,94593.0,94586.0,0.047851]
[1746450498226,0.001,94591.0,94586.0,0.049851]
[1746450498435,0.00264312,94593.0,94587.0,0.047851]
[1746450498808,0.00364312,94593.0,94587.0,0.047851]
[1746450499218,0.001,94591.0,94587.0,0.047851]
[1746450499603,0.015,94589.0,94587.0,0.047851]
[1746450499809,0.00264307,94588.0,94587.0,0.047851]
[1746450499996,0.0313,94589.0,94587.0,0.047851]
[1746450500328,0.03494307,94588.0,94587.0,0.047851]
[1746450500535,0.07334616,94588.0,94587.0,0.047851]
[1746450501890,0.07334616,94588.0,94587.0,0.050851]
[1746450502433,0.07434616,94588.0,94587.0,0.050851]
[1746450502667,0.09419681,94588.0,94587.0,0.050851]
[1746450504507,0.09419681,94588.0,94587.0,0.003]
[1746450505290,0.09311408,94588.0,94563.0,0.3478178]
[1746450505493,0.26441324,94573.0,94563.0,0.34787075]
[1746450505850,0.00264354,94572.0,94563.0,0.34787075]
[1746450506053,0.02249419,94572.0,94563.0,0.34787075]
[1746450506432,0.00264354,94572.0,94563.0,0.34787075]
[1746450506823,0.00264354,94572.0,94563.0,5.295e-05]
[1746450507025,0.02670568,94571.0,94563.0,5.295e-05]
[1746450507765,0.04371041,94571.0,94563.0,5.295e-05]
[1746450508175,0.04371041,94571.0,94563.0,0.00305295]
[1746450508346,0.04371041,94571.0,94564.0,0.04785136]
[1746450508932,0.00264354,94570.0,94564.0,0.04785136]
[1746450509281,0.03286672,94569.0,94564.0,0.04785136]
[1746450509488,0.00168696,94568.0,94564.0,0.04785136]
[1746450509612,0.01800473,94571.0,94564.0,0.04785136]
[1746450509822,0.00264371,94570.0,94564.0,0.04785136]
[1746450510136,0.01734533,94571.0,94564.0,0.04785136]
[1746450510383,0.02347299,94570.0,94564.0,0.04785136]
[1746450510579,0.03037862,94569.0,94564.0,0.05085136]
[1746450510777,0.00264371,94568.0,94564.0,0.05085136]
[1746450511040,0.05122928,94567.0,94564.0,0.04785136]
[1746450511164,0.00264371,94566.0,94564.0,0.04785136]
[1746450511389,0.01904371,94566.0,94564.0,0.04985136]
[1746450511592,0.01982928,94565.0,94564.0,0.04985136]
[1746450512016,0.01982928,94565.0,94564.0,0.04785136]
[1746450513200,0.02082928,94565.0,94564.0,0.04785136]
[1746450514010,0.02082928,94565.0,94564.0,0.05085136]
[1746450514433,0.02082928,94565.0,94564.0,0.04785136]
[1746450514785,0.02082928,94565.0,94564.0,0.04985136]
[1746450514988,0.06363856,94565.0,94564.0,0.002]
[1746450515195,0.04380928,94565.0,94564.0,0.002]
[1746450515786,0.06363856,94565.0,94564.0,0.002]
[1746450517051,0.56363856,94565.0,94564.0,0.002]
[1746450517252,0.56099485,94565.0,94564.0,0.002]
[1746450517451,0.0316,94564.0,94563.0,5.295e-05]
[1746450517769,0.18424391,94564.0,94563.0,5.295e-05]
[1746450517980,0.20407319,94564.0,94563.0,5.295e-05]
[1746450518715,0.20407319,94564.0,94563.0,0.00105295]
[1746450518995,0.75557016,94564.0,94563.0,0.00105295]
[1746450519115,0.64694957,94564.0,94563.0,0.00105295]
[1746450519323,0.64794957,94564.0,94563.0,0.00105295]
[1746450520821,0.85944654,94564.0,94563.0,5.295e-05]
[1746450521029,0.85844654,94564.0,94563.0,5.295e-05]
[1746450521172,0.85944654,94564.0,94563.0,5.295e-05]
[1746450521582,0.85844654,94564.0,94563.0,5.295e-05]
[1746450521766,0.85944654,94564.0,94563.0,5.295e-05]
[1746450521971,0.86044654,94564.0,94563.0,5.295e-05]
[1746450522161,0.85944654,94564.0,94563.0,5.295e-05]
[1746450522442,0.85944654,94564.0,94531.0,0.002]
[1746450522443,0.34,94543.0,94531.0,0.002]
[1746450522653,0.0318,94541.0,94540.0,0.00049556]
[1746450522858,0.1718,94541.0,94540.0,0.00049556]
[1746450523272,0.53427408,94541.0,94540.0,0.00049556]
[1746450523445,0.94432928,94541.0,94540.0,0.00049556]
[1746450524660,0.95310339,94541.0,94540.0,0.00049556]
[1746450524812,1.05862368,94541.0,94540.0,0.00049556]
[1746450525247,1.2711721,94541.0,94540.0,0.00049556]
[1746450525654,0.58359319,94521.0,94514.0,0.07989151]
[1746450525849,0.76342247,94521.0,94520.0,8.815e-05]
[1746450526113,0.86894276,94521.0,94520.0,8.815e-05]
[1746450526318,0.77963096,94521.0,94520.0,8.815e-05]
[1746450527684,0.78063096,94521.0,94520.0,8.815e-05]
[1746450527886,0.77963096,94521.0,94520.0,8.815e-05]
[1746450528317,0.78063096,94521.0,94520.0,8.815e-05]
[1746450528675,0.78063096,94521.0,94520.0,0.00208815]
[1746450528882,0.88615125,94521.0,94520.0,0.00208815]
[1746450529491,0.2116241,94508.0,94504.0,0.34692815]
[1746450529698,0.21162487,94507.0,94504.0,0.0001366]
[1746450530048,0.37162487,94507.0,94504.0,0.0001366]
[1746450530548,0.16,94507.0,94504.0,0.0001366]
[1746450530948,0.161,94507.0,94504.0,0.0001366]
[1746450531162,0.08064372,94506.0,94504.0,0.0001366]
[1746450531324,0.44491701,94506.0,94504.0,0.0041366]
[1746450531671,0.34,94505.0,94504.0,0.0041366]
[1746450531949,0.5227,94505.0,94504.0,0.0001366]
[1746450532158,0.5227,94505.0,94504.0,0.0051366]
[1746450532649,0.5227,94505.0,94504.0,0.0001366]
[1746450532872,0.53529516,94505.0,94504.0,0.0001366]
[1746450533008,0.55497563,94505.0,94504.0,0.0001366]
[1746450533219,0.55597563,94505.0,94504.0,0.0061366]
[1746450534711,0.55497563,94505.0,94504.0,0.0001366]
[1746450534914,0.55497563,94505.0,94504.0,0.0011366]
[1746450536414,0.34,94495.0,94491.0,0.0011766]
[1746450536630,0.00264598,94494.0,94491.0,0.00122473]
[1746450536855,0.34,94493.0,94491.0,0.00122473]
[1746450537039,0.47,94493.0,94491.0,0.00122473]
[1746450537241,0.56250357,94493.0,94491.0,0.00122473]
[1746450537999,0.47,94493.0,94491.0,0.00122473]
[1746450538412,0.471,94493.0,94491.0,0.00122473]
[1746450538629,0.00264598,94492.0,94491.0,0.00122473]
[1746450538761,0.3698041,94492.0,94491.0,0.00122473]
[1746450538964,0.40342081,94492.0,94491.0,0.00122473]
[1746450539166,0.8489411,94492.0,94491.0,0.00122473]
[1746450539370,0.8489411,94492.0,94491.0,0.00522473]
[1746450539968,0.81577456,94492.0,94491.0,0.00522473]
[1746450540372,0.81677456,94492.0,94491.0,0.00522473]
[1746450540625,0.71125427,94492.0,94491.0,0.00522473]
[1746450540821,0.71125427,94492.0,94491.0,0.00122473]
[1746450541022,0.71225427,94492.0,94491.0,0.00122473]
[1746450542272,0.71225427,94492.0,94491.0,0.00222473]
[1746450542717,0.71225427,94492.0,94491.0,0.00122473]
[1746450542942,0.81777456,94492.0,94491.0,0.00122473]
[1746450543158,0.81977456,94492.0,94491.0,0.00222473]
[1746450543547,0.81977456,94492.0,94491.0,0.00022473]
[1746450543992,0.71425427,94492.0,94491.0,0.00022473]
[1746450550725,0.34,94484.0,94475.0,0.02526473]
[1746450550938,0.02230899,94483.0,94475.0,0.0253103]
[1746450551151,0.34,94482.0,94475.0,0.0253103]
[1746450551313,0.0026463,94481.0,94475.0,0.0253103]
[1746450551520,0.34,94480.0,94475.0,0.0253103]
[1746450551724,0.02230899,94479.0,94476.0,0.0154]
[1746450551930,0.34,94478.0,94476.0,0.0154]
[1746450552284,0.02230898,94477.0,94475.0,0.0409103]
[1746450552439,0.34,94476.0,94475.0,0.0409103]
[1746450552639,0.49,94476.0,94475.0,0.0253103]
[1746450552839,0.50966269,94476.0,94475.0,0.0253103]
[1746450553655,0.5185249,94476.0,94475.0,0.0273103]
[1746450554095,0.56951691,94476.0,94475.0,0.0273103]
[1746450555282,0.57051691,94476.0,94475.0,0.0273103]
[1746450555958,0.5195249,94476.0,94475.0,0.0582103]
[1746450560551,0.48635409,94476.0,94475.0,0.0582103]
[1746450560755,0.1795249,94476.0,94475.0,0.0582103]
[1746450564761,0.1795249,94476.0,94475.0,0.0273103]
[1746450565207,0.1795249,94476.0,94475.0,0.0432103]
[1746450565534,0.1795249,94476.0,94475.0,0.0586103]
[1746450566595,0.1795249,94476.0,94475.0,0.0432103]
[1746450566799,0.1795249,94476.0,94475.0,0.0273103]
[1746450568204,0.2111249,94476.0,94475.0,0.0273103]
[1746450569189,0.1795249,94476.0,94475.0,0.0273103]
[1746450569399,0.18217121,94476.0,94475.0,0.0273103]
[1746450570167,0.20365833,94476.0,94475.0,0.0273103]
[1746450570690,0.18217121,94476.0,94475.0,0.0273103]
[1746450572935,0.21387121,94476.0,94475.0,0.0273103]
[1746450573104,0.2112249,94476.0,94475.0,0.0273103]
[1746450574304,0.1795249,94476.0,94475.0,0.0273103]
[1746450574611,0.1821713,94476.0,94475.0,0.0273103]
[1746450575191,0.2121713,94476.0,94475.0,0.0273103]
[1746450575397,0.23348843,94476.0,94475.0,0.0273103]
[1746450575611,0.23084203,94476.0,94475.0,0.0273103]
[1746450578643,0.2095249,94476.0,94475.0,0.0273103]
[1746450578863,0.18217143,94476.0,94475.0,0.0273103]
[1746450579749,0.1795249,94476.0,94475.0,0.0273103]
[1746450583016,0.5519249,94476.0,94475.0,0.0273103]
[1746450584006,0.5355249,94476.0,94475.0,0.0273103]
[1746450585704,0.5195249,94476.0,94475.0,0.0273103]
[1746450591944,0.5509249,94476.0,94475.0,0.0273103]
[1746450594408,0.5351249,94476.0,94475.0,0.0273103]
[1746450595078,0.5195249,94476.0,94475.0,0.0273103]
[1746450601328,0.5195249,94476.0,94475.0,0.0430103]
[1746450601526,0.5195249,94476.0,94475.0,0.0588103]
[1746450605253,0.5195249,94476.0,94475.0,0.0273103]
[1746450614618,0.02166269,94476.0,94475.0,0.0583103]
[1746450614822,0.15166269,94476.0,94475.0,0.0583103]
[1746450615240,0.132,94476.0,94475.0,0.07285115]
[1746450615859,0.132,94476.0,94475.0,0.47285115]
[1746450616348,0.131,94476.0,94475.0,0.47285115]
[1746450616900,0.132,94476.0,94475.0,0.47285115]
[1746450618704,0.131,94476.0,94475.0,0.47085115]
[1746450619051,0.132,94476.0,94475.0,0.47485115]
[1746450619637,0.132,94476.0,94475.0,0.52274551]
[1746450620407,0.09883688,94476.0,94475.0,0.52274551]
[1746450628828,0.09883688,94476.0,94475.0,0.57270427]
[1746450630448,0.03498689,94476.0,94475.0,0.57270427]
[1746450631593,0.03398689,94476.0,94475.0,0.56870427]
[1746450632031,0.03398689,94476.0,94475.0,0.57470427]
[1746450632258,0.03498689,94476.0,94475.0,0.57970427]
[1746450633948,0.03498689,94476.0,94475.0,0.52974551]
[1746450638607,0.03498689,94476.0,94475.0,0.94374551]
[1746450639159,0.03498689,94476.0,94475.0,0.89585115]
[1746450641460,0.03498689,94476.0,94475.0,0.94579111]
[1746450642402,0.14182439,94476.0,94475.0,0.94579111]
[1746450644023,0.14182439,94476.0,94475.0,0.91479111]
[1746450644224,0.14182439,94476.0,94475.0,0.93079111]
[1746450644396,0.14182439,94476.0,94475.0,0.94689111]
[1746450644580,0.14182439,94476.0,94475.0,0.94474921]
[1746450644970,0.14182439,94476.0,94475.0,0.91264921]
[1746450645673,0.14182439,94476.0,94475.0,0.92774921]
[1746450648598,0.14182439,94476.0,94475.0,0.91264921]
[1746450653009,0.14182439,94476.0,94475.0,0.94494921]
[1746450654722,0.14182439,94476.0,94475.0,0.54538025]
[1746450657534,0.14182439,94476.0,94475.0,0.53094921]
[1746450659722,0.14182439,94476.0,94475.0,0.94494921]
[1746450660157,0.24,94486.0,94478.0,0.01454085]
[1746450660158,0.01660221,94486.0,94478.0,0.01454085]
[1746450660364,0.14,94486.0,94481.0,0.01454085]
[1746450660516,0.14,94486.0,94485.0,0.01454085]
[1746450660716,0.14,94486.0,94485.0,0.44554085]
[1746450661719,0.141,94486.0,94485.0,0.44554085]
[1746450661925,0.141,94486.0,94485.0,0.04554085]
[1746450662124,0.141,94486.0,94485.0,0.04702973]
[1746450662328,0.142,94486.0,94485.0,0.05002973]
[1746450663400,0.142,94486.0,94485.0,0.03432973]
[1746450663809,0.142,94486.0,94485.0,0.41902973]
[1746450664028,0.142,94486.0,94485.0,0.41754085]
[1746450664470,0.142,94486.0,94485.0,0.41854085]
[1746450665603,0.142,94486.0,94485.0,0.46633891]
[1746450669966,0.142,94486.0,94485.0,0.88033891]
[1746450673759,0.142,94486.0,94485.0,0.46633891]
[1746450675259,0.10884184,94486.0,94485.0,0.46633891]
[1746450677089,0.10884184,94486.0,94485.0,0.88033891]
[1746450680791,0.10884184,94486.0,94485.0,0.91263891]
[1746450681670,0.10684184,94486.0,94485.0,0.90963891]
[1746450682103,0.10684184,94486.0,94485.0,0.91063891]
[1746450682301,0.10684184,94486.0,94485.0,0.90863891]
[1746450682712,0.10684184,94486.0,94485.0,0.91163891]
[1746450683770,0.10684184,94486.0,94485.0,0.89573891]
[1746450683955,0.10684184,94486.0,94485.0,0.89533891]
[1746450684102,0.10684184,94486.0,94485.0,0.91113891]
[1746450687451,0.10684184,94486.0,94485.0,0.87933891]
[1746450689426,0.10684184,94486.0,94485.0,0.77583891]
[1746450689760,0.10684184,94486.0,94485.0,0.46533891]
[1746450694538,0.10684184,94486.0,94485.0,0.87933891]
[1746450695495,0.07368422,94486.0,94485.0,0.87933891]
[1746450713500,0.07368422,94486.0,94485.0,0.46533891]
[1746450716270,0.04052628,94486.0,94485.0,0.46533891]
[1746450718472,0.04052628,94486.0,94485.0,0.77583891]
[1746450718781,0.04052628,94486.0,94485.0,0.87933891]
[1746450728384,0.04052628,94486.0,94485.0,0.46533891]
[1746450729154,0.04052628,94486.0,94485.0,0.49663891]
[1746450729335,0.15,94486.0,94485.0,0.49663891]
[1746450729483,0.15,94486.0,94485.0,0.46533891]
[1746450729688,0.15,94486.0,94485.0,0.79093891]